bitfinex/quotes_BTCUSD_20260311
["timestamp","ask_amount","ask_price","bid_price","bid_amount"]
[1773233664740,0.02916234,69300.0,69270.0,7.5e-05]
[1773233664741,0.04050573,69299.0,69280.0,0.07042056]
[1773233666081,0.07215215,69298.0,69279.0,0.07224605]
[1773233666443,0.04050573,69297.0,69296.0,7.5e-05]
[1773233666738,0.04050573,69297.0,69279.0,0.07224605]
[1773233666740,0.04050573,69296.0,69279.0,0.07224605]
[1773233667583,0.04065193,69296.0,69279.0,0.07224605]
[1773233668126,0.07215527,69295.0,69277.0,0.07237298]
[1773233668328,0.04050573,69294.0,69277.0,0.07237298]
[1773233668507,0.0001462,69294.0,69280.0,0.02916234]
[1773233669688,0.0001462,69294.0,69277.0,0.07237298]
[1773233670132,0.0001462,69294.0,69277.0,0.07337298]
[1773233670935,0.0001462,69294.0,69277.0,0.07237298]
[1773233671339,0.07214866,69302.0,69277.0,0.07237298]
[1773233671340,7.5e-05,69305.0,69280.0,0.08749434]
[1773233671539,0.00029501,69305.0,69277.0,0.07337298]
[1773233671784,0.07213861,69312.0,69280.0,0.08749434]
[1773233671785,0.04050573,69312.0,69280.0,0.08749434]
[1773233671912,0.04050573,69312.0,69290.0,0.08734249]
[1773233671913,0.00022001,69312.0,69290.0,0.08734249]
[1773233672123,0.07235042,69319.0,69290.0,0.08734249]
[1773233672124,0.00022001,69319.0,69290.0,0.08734249]
[1773233672827,0.00022001,69319.0,69291.0,0.07215944]
[1773233673029,0.00022001,69319.0,69291.0,0.07200761]
[1773233674171,7.5e-05,69296.0,69291.0,0.07200761]
[1773233674365,0.00022001,69319.0,69291.0,0.07400761]
[1773233674643,0.00022001,69319.0,69291.0,0.07200761]
[1773233675077,0.00022001,69319.0,69291.0,0.07400761]
[1773233675283,7.5e-05,69292.0,69291.0,0.07400761]
[1773233675440,0.00022001,69319.0,69291.0,0.07400761]
[1773233676075,0.04067553,69317.0,69291.0,0.07400761]
[1773233676386,0.04067553,69317.0,69291.0,0.07293261]
[1773233676607,0.04067553,69317.0,69291.0,0.07378076]
[1773233676742,0.04067553,69317.0,69291.0,0.07278076]
[1773233677136,0.04067553,69317.0,69291.0,0.07370576]
[1773233677366,0.07229233,69327.0,69301.0,0.08035368]
[1773233677367,0.00045001,69325.0,69301.0,0.08035368]
[1773233677984,0.00045001,69325.0,69309.0,7.5e-05]
[1773233678683,0.07233681,69332.0,69309.0,7.5e-05]
[1773233678684,0.07233681,69332.0,69310.0,0.08749434]
[1773233678685,0.00022001,69332.0,69310.0,0.08749434]
[1773233678899,0.00022001,69332.0,69310.0,0.08732742]
[1773233679146,0.00022001,69332.0,69311.0,0.07213862]
[1773233679520,0.04072574,69332.0,69311.0,0.07213862]
[1773233679724,0.04072574,69332.0,69311.0,0.07223581]
[1773233680470,0.04080074,69331.0,69311.0,0.07223581]
[1773233680822,0.04080074,69331.0,69311.0,0.07323581]
[1773233681247,0.04080074,69331.0,69311.0,0.07223581]
[1773233681643,0.07211885,69330.0,69311.0,0.07223581]
[1773233681850,0.04050573,69329.0,69311.0,0.07223581]
[1773233682625,0.04050573,69329.0,69311.0,0.07323581]
[1773233683090,0.00029501,69331.0,69311.0,0.07323581]
[1773233683091,0.0001539,69330.0,69311.0,0.07223581]
[1773233683693,0.0001539,69330.0,69311.0,0.071902]
[1773233684073,0.0001539,69330.0,69311.0,0.07175026]
[1773233684394,0.00029501,69335.0,69311.0,0.07175026]
[1773233684395,0.04050573,69338.0,69311.0,0.07175026]
[1773233685709,7.5e-05,69344.0,69321.0,0.01126939]
[1773233685920,0.02626033,69343.0,69312.0,0.01111768]
[1773233686136,0.02626033,69337.0,69312.0,0.01111768]
[1773233686786,0.02626033,69337.0,69312.0,0.01121487]
[1773233686973,0.02626033,69337.0,69321.0,0.001]
[1773233687172,0.02626033,69337.0,69319.0,0.01130542]
[1773233687730,0.02626033,69337.0,69320.0,0.07212925]
[1773233688028,0.02626033,69337.0,69321.0,0.01123846]
[1773233688241,0.02626033,69343.0,69321.0,0.01123846]
[1773233688468,0.07209922,69349.0,69320.0,0.15962359]
[1773233688469,0.07232847,69350.0,69320.0,0.15962359]
[1773233688470,0.02626033,69353.0,69331.0,0.02600827]
[1773233688664,0.05609349,69361.0,69340.0,0.02600827]
[1773233688665,0.02626033,69356.0,69340.0,0.02600827]
[1773233689249,0.05609349,69361.0,69340.0,0.02600827]
[1773233689250,7.5e-05,69361.0,69340.0,0.02600827]
[1773233689667,7.5e-05,69361.0,69342.0,0.02600827]
[1773233689894,0.02574958,69360.0,69342.0,0.02600827]
[1773233691212,0.02574958,69360.0,69342.0,0.02585653]
[1773233691717,0.02574958,69360.0,69344.0,0.02550894]
[1773233692509,7.5e-05,69370.0,69350.0,0.08731108]
[1773233692874,7.5e-05,69370.0,69351.0,0.02550894]
[1773233693524,0.00022001,69366.0,69351.0,0.02550894]
[1773233693802,1e-08,69371.0,69353.0,0.02550894]
[1773233694370,1e-08,69371.0,69352.0,0.07209597]
[1773233694371,7.5e-05,69374.0,69360.0,0.08731108]
[1773233694559,7.5e-05,69374.0,69361.0,0.02550894]
[1773233694817,7.5e-05,69374.0,69362.0,0.02550894]
[1773233695814,7.5e-05,69374.0,69364.0,0.02550894]
[1773233696654,7.5e-05,69374.0,69363.0,0.07208454]
[1773233696655,7.5e-05,69374.0,69348.0,0.02550894]
[1773233696656,0.02574958,69373.0,69348.0,0.02550894]
[1773233697214,0.02574958,69373.0,69351.0,0.02550894]
[1773233697932,0.02574958,69373.0,69353.0,0.02550894]
[1773233698139,0.02574958,69372.0,69353.0,0.02550894]
[1773233699124,7.5e-05,69374.0,69353.0,0.02550894]
[1773233699631,7.5e-05,69374.0,69352.0,0.07209597]
[1773233699632,0.02439589,69377.0,69361.0,0.02488278]
[1773233699931,7.5e-05,69378.0,69362.0,0.07208558]
[1773233700138,0.00022001,69374.0,69363.0,0.02488278]
[1773233700523,7.5e-05,69378.0,69363.0,0.02488278]
[1773233701624,0.00022001,69381.0,69363.0,0.02488278]
[1773233703356,0.00022001,69381.0,69364.0,0.0720835]
[1773233703574,0.03558826,69386.0,69364.0,0.0720835]
[1773233703575,0.02814326,69386.0,69365.0,0.02488278]
[1773233704430,0.02439589,69385.0,69365.0,0.02488278]
[1773233704612,0.02439589,69385.0,69364.0,0.0720835]
[1773233708053,0.07206272,69384.0,69365.0,0.0002]
[1773233708255,0.02439589,69383.0,69365.0,0.0002]
[1773233709037,0.07206193,69385.0,69366.0,0.02488278]
[1773233709235,0.07602822,69386.0,69366.0,0.02488278]
[1773233709491,0.02439589,69385.0,69366.0,0.02488278]
[1773233710095,0.07602822,69386.0,69366.0,0.02488278]
[1773233710096,0.00396738,69386.0,69366.0,0.02488278]
[1773233710434,0.00396738,69386.0,69371.0,0.02488278]
[1773233710435,1e-08,69386.0,69371.0,0.02488278]
[1773233711043,0.01124,69389.0,69371.0,0.02488278]
[1773233711306,0.01124,69389.0,69367.0,0.07208038]
[1773233711307,0.07210811,69413.0,69367.0,0.07208038]
[1773233711308,0.02439589,69411.0,69381.0,0.02488278]
[1773233712412,0.02439589,69411.0,69382.0,0.0720648]
[1773233712413,0.07203572,69410.0,69382.0,0.0720648]
[1773233712721,0.02439589,69409.0,69383.0,0.02488278]
[1773233712924,1e-08,69412.0,69383.0,0.02488278]
[1773233713155,1e-08,69412.0,69382.0,0.0720648]
[1773233713156,1e-08,69412.0,69385.0,0.02488278]
[1773233713157,0.02439589,69411.0,69385.0,0.02488278]
[1773233713901,0.02439589,69411.0,69380.0,0.0720648]
[1773233713902,0.02439589,69411.0,69377.0,0.07206977]
[1773233714229,0.02439589,69411.0,69376.0,0.07207103]
[1773233714230,0.02439589,69409.0,69376.0,0.07207103]
[1773233714775,0.02439589,69407.0,69376.0,0.07207103]
[1773233715658,0.02439589,69407.0,69375.0,0.00023]
[1773233715824,0.21507391,69408.0,69374.0,0.07214809]
[1773233715825,0.02439589,69399.0,69374.0,0.07214809]
[1773233716943,0.07204818,69398.0,69374.0,7.5e-05]
[1773233717152,0.02439589,69397.0,69374.0,7.5e-05]
[1773233717996,0.02439589,69397.0,69375.0,0.02488278]
[1773233718425,0.02439589,69397.0,69374.0,7.5e-05]
[1773233718718,0.02639589,69397.0,69374.0,7.5e-05]
[1773233718908,0.02539589,69397.0,69374.0,7.5e-05]
[1773233719067,0.07205026,69396.0,69374.0,7.5e-05]
[1773233719274,0.02439589,69395.0,69374.0,7.5e-05]
[1773233719690,0.0034,69386.0,69374.0,7.5e-05]
[1773233720101,0.0034,69386.0,69375.0,0.02209184]
[1773233720298,0.00292,69386.0,69375.0,0.02209184]
[1773233720515,0.07304925,69397.0,69375.0,0.02209184]
[1773233720695,0.001,69397.0,69375.0,0.02209184]
[1773233720900,0.02322289,69396.0,69375.0,0.02209184]
[1773233721217,0.09527419,69395.0,69377.0,0.02209184]
[1773233721647,0.02322289,69394.0,69377.0,0.02209184]
[1773233723092,0.00023,69400.0,69377.0,0.02209184]
[1773233723301,0.07227622,69400.0,69379.0,0.02209184]
[1773233723649,0.00022001,69397.0,69379.0,0.02209184]
[1773233723991,0.02322289,69396.0,69379.0,0.02209184]
[1773233725168,0.001,69396.0,69379.0,0.02209184]
[1773233725373,0.07405069,69396.0,69381.0,0.02209184]
[1773233725558,0.07305069,69396.0,69381.0,0.02209184]
[1773233726520,0.07205069,69396.0,69381.0,0.02209184]
[1773233727102,0.07219427,69397.0,69381.0,0.02209184]
[1773233727252,0.07211927,69397.0,69381.0,0.02209184]
[1773233727452,0.07297527,69396.0,69383.0,0.02209184]
[1773233727651,0.07205027,69396.0,69383.0,0.02209184]
[1773233727975,0.09527316,69396.0,69391.0,7.5e-05]
[1773233728189,0.02322289,69396.0,69391.0,7.5e-05]
[1773233728396,7.001e-05,69397.0,69391.0,7.5e-05]
[1773233728596,0.00022001,69404.0,69391.0,7.5e-05]
[1773233728597,0.00022001,69404.0,69392.0,0.02178897]
[1773233728801,0.00022001,69404.0,69392.0,0.02163753]
[1773233729721,0.00022001,69404.0,69394.0,0.02209184]
[1773233730280,0.00022001,69411.0,69394.0,0.02209184]
[1773233730694,0.07225489,69411.0,69394.0,0.02209184]
[1773233731137,0.00022001,69404.0,69394.0,0.02209184]
[1773233731728,0.00022001,69411.0,69396.0,0.02209184]
[1773233732310,0.00029501,69418.0,69401.0,0.02209184]
[1773233732311,1e-08,69418.0,69401.0,0.02209184]
[1773233732509,1e-08,69418.0,69401.0,0.02194043]
[1773233732910,1e-08,69418.0,69400.0,0.08731108]
[1773233732911,0.00045001,69425.0,69408.0,0.08731108]
[1773233733101,0.00045001,69425.0,69409.0,0.02209184]
[1773233733453,0.00045001,69425.0,69395.0,0.0720513]
[1773233733454,0.02322289,69423.0,69396.0,0.02209184]
[1773233733751,0.02322289,69421.0,69398.0,0.02209184]
[1773233734552,0.07202327,69423.0,69400.0,0.08731108]
[1773233734781,7.5e-05,69413.0,69401.0,0.02209184]
[1773233734951,0.07247026,69425.0,69401.0,0.02209184]
[1773233735155,0.00045001,69425.0,69401.0,0.02209184]
[1773233735760,7.5e-05,69409.0,69402.0,0.07204403]
[1773233736072,7.5e-05,69409.0,69403.0,0.02209184]
[1773233736560,7.5e-05,69409.0,69402.0,0.07190745]
[1773233736561,7.5e-05,69405.0,69402.0,0.07190745]
[1773233736739,7.5e-05,69405.0,69402.0,0.07099916]
[1773233736910,7.5e-05,69405.0,69402.0,0.07084774]
[1773233737434,7.5e-05,69405.0,69402.0,0.07077274]
[1773233737657,7.5e-05,69409.0,69403.0,0.02209184]
[1773233737962,0.07247075,69425.0,69403.0,0.02209184]
[1773233737963,0.07202228,69423.0,69405.0,0.02209184]
[1773233738123,0.02322289,69422.0,69404.0,0.07204195]
[1773233738733,0.02322289,69422.0,69405.0,0.02209184]
[1773233739139,0.02322289,69422.0,69418.0,7.5e-05]
[1773233739341,0.02322289,69422.0,69413.0,7.5e-05]
[1773233739948,0.07202431,69421.0,69413.0,7.5e-05]
[1773233740127,0.07202431,69421.0,69404.0,0.07204195]
[1773233740128,0.02322289,69420.0,69404.0,0.07204195]
[1773233740337,0.02322289,69420.0,69394.0,0.07205181]
[1773233740338,0.02322289,69420.0,69399.0,0.07204714]
[1773233740855,0.02322289,69420.0,69384.0,0.02229184]
[1773233740856,0.08731108,69420.0,69384.0,0.02229184]
[1773233741017,0.02322289,69419.0,69388.0,0.07205768]
[1773233741710,0.02322289,69419.0,69387.0,0.07213449]
[1773233741911,0.02322289,69418.0,69387.0,7.5e-05]
[1773233742115,0.02322289,69416.0,69387.0,7.5e-05]
[1773233743582,0.02322289,69416.0,69380.0,0.07206583]
[1773233743583,0.02322289,69416.0,69375.0,0.00023]
[1773233743786,0.02322289,69416.0,69370.0,7.5e-05]
[1773233743787,0.02322289,69399.0,69370.0,7.5e-05]
[1773233744008,0.07204818,69398.0,69370.0,7.5e-05]
[1773233744321,0.02322289,69397.0,69370.0,7.5e-05]
[1773233745541,0.02322289,69397.0,69371.0,0.02209184]
[1773233746156,7.5e-05,69378.0,69372.0,0.09416702]
[1773233746354,0.02322289,69391.0,69372.0,0.09416702]
[1773233746656,0.07205026,69396.0,69373.0,0.02209184]
[1773233747257,7.5e-05,69383.0,69373.0,0.02209184]
[1773233748035,0.02322289,69395.0,69373.0,0.02209184]
[1773233748376,0.07205233,69394.0,69375.0,0.02209184]
[1773233749336,7.5e-05,69391.0,69375.0,0.02209184]
[1773233750383,7.5e-05,69391.0,69376.0,0.07207103]
[1773233750581,7.5e-05,69391.0,69377.0,0.02258691]
[1773233751687,7.5e-05,69396.0,69377.0,0.02258691]
[1773233753414,7.5e-05,69396.0,69379.0,0.02258691]
[1773233754888,0.07204714,69399.0,69379.0,0.02258691]
[1773233755089,0.07204714,69399.0,69379.0,0.02358691]
[1773233755289,0.07189714,69399.0,69379.0,0.02358691]
[1773233755732,0.09308587,69399.0,69396.0,7.5e-05]
[1773233756823,0.07189714,69399.0,69396.0,7.5e-05]
[1773233757204,0.02118873,69398.0,69380.0,0.09465378]
[1773233757606,0.02118873,69398.0,69381.0,0.02170175]
[1773233758020,0.02118873,69398.0,69340.0,0.30014784]
[1773233758021,0.02282691,69396.0,69377.0,0.0002]
[1773233758224,0.02282691,69396.0,69370.0,0.000275]
[1773233758225,0.02282691,69396.0,69371.0,0.07207622]
[1773233759575,0.02282691,69396.0,69380.0,0.001]
[1773233759777,0.02282691,69396.0,69371.0,0.07207622]
[1773233759982,0.0720513,69395.0,69371.0,0.07207622]
[1773233760248,0.02282691,69394.0,69371.0,0.07207622]
[1773233760875,0.02282691,69394.0,69370.0,0.000275]
[1773233761321,0.02382691,69394.0,69370.0,0.000275]
[1773233761537,0.02482691,69394.0,69370.0,0.000275]
[1773233761959,0.02482691,69394.0,69372.0,0.02170175]
[1773233762179,0.02282691,69393.0,69374.0,0.02170175]
[1773233762835,0.07427338,69394.0,69374.0,0.02170175]
[1773233762836,0.07227251,69394.0,69374.0,0.02170175]
[1773233763156,0.02282691,69393.0,69374.0,0.02170175]
[1773233764362,0.02282691,69391.0,69373.0,0.07207207]
[1773233764663,0.02282691,69391.0,69372.0,0.07207316]
[1773233765634,0.02282691,69391.0,69371.0,0.0002]
[1773233766148,0.07205649,69390.0,69371.0,0.0002]
[1773233766366,0.02282691,69389.0,69371.0,0.0002]
[1773233767155,0.07205649,69390.0,69372.0,0.02170175]
[1773233767356,0.07298149,69390.0,69372.0,0.02170175]
[1773233767560,0.07198149,69390.0,69387.0,7.5e-05]
[1773233767791,0.07198149,69390.0,69383.0,7.5e-05]
[1773233767988,0.002,69389.0,69383.0,7.5e-05]
[1773233768215,0.07405851,69389.0,69383.0,7.5e-05]
[1773233768547,0.002,69389.0,69383.0,7.5e-05]
[1773233768985,0.07405778,69389.0,69383.0,7.5e-05]
[1773233769366,0.07205545,69392.0,69384.0,0.02170175]
[1773233769367,0.07205545,69391.0,69384.0,0.02170175]
[1773233770607,0.07205545,69393.0,69384.0,0.02170175]
[1773233770608,0.001,69389.0,69384.0,0.09376415]
[1773233770806,0.001,69389.0,69384.0,0.02170175]
[1773233771106,0.07205545,69393.0,69384.0,0.09376428]
[1773233771318,0.07227338,69394.0,69384.0,0.09376428]
[1773233771606,0.07227255,69394.0,69384.0,0.09376428]
[1773233772186,0.02282691,69393.0,69382.0,0.07206272]
[1773233772393,0.02282691,69393.0,69378.0,0.07214334]
[1773233772394,0.02282691,69393.0,69378.0,0.07214388]
[1773233772606,0.02282691,69393.0,69378.0,7.5e-05]
[1773233772607,0.02282691,69391.0,69378.0,7.5e-05]
[1773233773121,0.02282691,69391.0,69384.0,0.001]
[1773233773317,0.02282691,69391.0,69378.0,7.5e-05]
[1773233773734,0.02282691,69391.0,69371.0,0.0002]
[1773233773932,0.02282691,69391.0,69371.0,0.07227581]
[1773233774437,0.02382691,69391.0,69371.0,0.07227581]
[1773233774836,0.02282691,69389.0,69371.0,0.07227581]
[1773233775039,0.02269621,69389.0,69371.0,0.07227581]
[1773233775336,0.02269621,69389.0,69371.0,0.05827581]
[1773233775638,0.02269621,69389.0,69370.0,0.07235223]
[1773233775845,0.02269621,69389.0,69363.0,0.0002]
[1773233776000,0.02269621,69389.0,69364.0,0.07208345]
[1773233776001,0.02282691,69388.0,69364.0,0.07208345]
[1773233776393,0.02282691,69388.0,69364.0,1e-08]
[1773233776592,0.02282691,69387.0,69364.0,0.0720834]
[1773233776793,0.02282691,69385.0,69364.0,1e-08]
[1773233777825,0.21589588,69386.0,69364.0,1e-08]
[1773233778046,0.001,69385.0,69364.0,1e-08]
[1773233778481,0.02282691,69384.0,69364.0,1e-08]
[1773233778995,0.02282691,69382.0,69364.0,1e-08]
[1773233779399,0.21582598,69383.0,69364.0,1e-08]
[1773233779400,7.5e-05,69378.0,69364.0,1e-08]
[1773233779533,0.02282691,69377.0,69364.0,1e-08]
[1773233780835,0.09383405,69376.0,69364.0,1e-08]
[1773233782931,0.09383405,69376.0,69365.0,0.07208246]
[1773233784130,0.07207103,69376.0,69365.0,0.09341141]
[1773233784770,0.07207103,69376.0,69364.0,0.07208318]
[1773233784771,0.07207103,69376.0,69364.0,0.0720835]
[1773233785011,0.09255382,69376.0,69364.0,1e-08]
[1773233786109,0.02048279,69375.0,69364.0,0.00100001]
[1773233786539,0.02048279,69375.0,69364.0,1e-08]
[1773233786885,0.07214603,69378.0,69364.0,1e-08]
[1773233787174,0.07214487,69378.0,69365.0,0.02132895]
[1773233788401,0.07206987,69378.0,69365.0,0.02132895]
[1773233788602,0.07206643,69381.0,69365.0,0.02132895]
[1773233788802,0.07228536,69382.0,69365.0,0.02132895]
[1773233789031,0.07228536,69382.0,69367.0,0.07208038]
[1773233789207,0.07228536,69382.0,69368.0,0.02132895]
[1773233789409,0.0721351,69387.0,69370.0,0.02132895]
[1773233790622,0.0721351,69387.0,69370.0,0.02232895]
[1773233790987,0.02048279,69386.0,69370.0,0.02232895]
[1773233791817,0.07206168,69385.0,69371.0,0.07207622]
[1773233792012,0.07206168,69385.0,69372.0,0.02132895]
[1773233792420,0.09254447,69386.0,69372.0,0.02132895]
[1773233793408,0.09254447,69386.0,69372.0,0.02232895]
[1773233793609,0.09254447,69386.0,69372.0,0.02132895]
[1773233794685,0.09254447,69386.0,69373.0,0.07207414]
[1773233794851,0.09254429,69386.0,69373.0,0.07207414]
[1773233795033,0.09254429,69386.0,69373.0,0.09340309]
[1773233797683,0.02048279,69385.0,69373.0,0.07207414]
[1773233798139,0.02048279,69385.0,69365.0,0.0002]
[1773233799001,0.02048279,69383.0,69374.0,7.5e-05]
[1773233799204,0.02048279,69383.0,69370.0,7.5e-05]
[1773233799429,0.02048279,69383.0,69365.0,0.000275]
[1773233800594,0.02048279,69383.0,69366.0,0.02132895]
[1773233801008,0.0720648,69382.0,69367.0,0.07208038]
[1773233801208,0.0720648,69382.0,69368.0,0.02132895]
[1773233802967,0.07206168,69385.0,69368.0,0.02132895]
[1773233803274,0.07228169,69386.0,69370.0,0.02132895]
[1773233804883,0.02048279,69390.0,69370.0,0.10857823]
[1773233805080,0.02048279,69390.0,69373.0,0.02132895]
[1773233805681,7.5e-05,69383.0,69372.0,0.07207518]
[1773233806938,7.5e-05,69374.0,69372.0,0.07207518]
[1773233807514,7.5e-05,69383.0,69368.0,0.0002]
[1773233807700,7.5e-05,69378.0,69368.0,0.0002]
[1773233807966,7.5e-05,69383.0,69373.0,0.001]
[1773233808139,7.5e-05,69383.0,69368.0,0.0002]
[1773233808637,7.5e-05,69383.0,69372.0,0.001]
[1773233808858,7.5e-05,69383.0,69368.0,0.0002]
[1773233809016,7.5e-05,69383.0,69373.0,0.001]
[1773233809199,7.5e-05,69383.0,69368.0,0.0002]
[1773233809401,7.5e-05,69383.0,69368.0,0.0012]
[1773233809651,7.5e-05,69383.0,69369.0,0.0720783]
[1773233811666,7.5e-05,69383.0,69368.0,0.09377234]
[1773233812031,7.5e-05,69383.0,69368.0,0.09277234]
[1773233812984,0.02185683,69382.0,69368.0,0.0732783]
[1773233813281,0.02185683,69382.0,69368.0,0.0012]
[1773233814168,0.09392266,69381.0,69369.0,0.0720783]
[1773233814369,0.07206583,69381.0,69370.0,0.02049404]
[1773233816549,7.5e-05,69383.0,69374.0,7.5e-05]
[1773233817158,0.02185683,69382.0,69374.0,7.5e-05]
[1773233819318,0.02185683,69380.0,69374.0,7.5e-05]
[1773233819985,0.07206583,69381.0,69374.0,7.5e-05]
[1773233822001,7.5e-05,69383.0,69374.0,7.5e-05]
[1773233822201,0.02185683,69382.0,69374.0,7.5e-05]
[1773233822429,0.02185683,69382.0,69370.0,7.5e-05]
[1773233823221,0.14395545,69382.0,69370.0,7.5e-05]
[1773233823427,0.02185683,69382.0,69370.0,7.5e-05]
[1773233823852,0.02285683,69382.0,69370.0,7.5e-05]
[1773233824069,0.02185683,69380.0,69370.0,7.5e-05]
[1773233825138,0.21602128,69381.0,69370.0,7.5e-05]
[1773233825139,7.5e-05,69378.0,69370.0,7.5e-05]
[1773233825343,0.02185683,69377.0,69370.0,7.5e-05]
[1773233826148,0.02185683,69375.0,69370.0,7.5e-05]
[1773233826600,0.02185683,69375.0,69370.0,0.000275]
[1773233827766,0.02185683,69375.0,69365.0,0.000275]
[1773233827969,0.02185683,69375.0,69361.0,0.07236069]
[1773233827970,0.02185683,69375.0,69356.0,1e-08]
[1773233827971,0.07207311,69374.0,69356.0,1e-08]
[1773233828220,0.02185683,69373.0,69356.0,0.07209165]
[1773233828432,0.02185683,69373.0,69356.0,1e-08]
[1773233828631,0.1438228,69373.0,69356.0,1e-08]
[1773233828828,0.07207311,69374.0,69356.0,1e-08]
[1773233829034,0.02185683,69373.0,69356.0,1e-08]
[1773233829452,0.02185683,69373.0,69356.0,0.02049405]
[1773233829821,0.02285683,69373.0,69356.0,0.02049405]
[1773233830167,0.09393201,69372.0,69357.0,0.07209077]
[1773233831909,0.07207518,69372.0,69356.0,0.09258482]
[1773233832117,0.02185683,69371.0,69356.0,0.09258482]
[1773233832320,0.02185683,69369.0,69356.0,0.09258482]
[1773233832520,0.02185683,69369.0,69356.0,0.07209078]
[1773233832674,7.5e-05,69365.0,69356.0,0.07209078]
[1773233832879,7.5e-05,69365.0,69356.0,1e-08]
[1773233833338,7.5e-05,69365.0,69356.0,0.07209134]
[1773233833637,7.5e-05,69361.0,69357.0,0.02049404]
[1773233833778,0.07207726,69370.0,69357.0,0.02049404]
[1773233834519,7.5e-05,69370.0,69358.0,0.07208973]
[1773233834820,7.5e-05,69370.0,69359.0,0.02049404]
[1773233835430,7.5e-05,69370.0,69358.0,0.07208973]
[1773233835863,0.07207518,69372.0,69359.0,0.02049404]
[1773233836628,0.07207518,69372.0,69359.0,0.09258195]
[1773233837032,0.09393201,69372.0,69359.0,0.09258195]
[1773233837507,0.02185683,69372.0,69359.0,0.09258195]
[1773233837836,0.07207311,69376.0,69359.0,0.07208791]
[1773233838032,0.07214431,69378.0,69362.0,0.02049404]
[1773233838649,0.07214431,69378.0,69363.0,0.07208454]
[1773233838852,0.07214431,69378.0,69364.0,0.02049404]
[1773233840508,0.07214431,69378.0,69364.0,0.02149404]
[1773233840881,0.07214431,69378.0,69365.0,0.07208246]
[1773233841089,0.07214431,69378.0,69365.0,0.09300221]
[1773233841408,0.07206874,69379.0,69366.0,0.02091975]
[1773233841590,0.07206298,69384.0,69366.0,0.02091975]
[1773233841776,0.07257422,69383.0,69366.0,0.02091975]
[1773233842679,0.00022001,69380.0,69366.0,0.02091975]
[1773233842888,0.07206281,69384.0,69366.0,0.02091975]
[1773233843087,0.07206256,69385.0,69368.0,0.02091975]
[1773233844327,0.07228139,69386.0,69368.0,0.02091975]
[1773233844328,0.00022001,69386.0,69368.0,0.02091975]
[1773233844778,0.00022001,69386.0,69368.0,0.02191975]
[1773233845165,0.00022001,69386.0,69370.0,0.02091975]
[1773233845542,0.00029501,69387.0,69370.0,0.02091975]
[1773233846168,0.00029501,69387.0,69375.0,0.02091975]
[1773233846370,0.00022001,69390.0,69375.0,0.02091975]
[1773233847094,0.07227672,69390.0,69376.0,0.07207103]
[1773233847290,0.00022001,69390.0,69376.0,0.07207103]
[1773233847442,0.00022001,69390.0,69377.0,0.02091975]
[1773233847854,0.07205156,69395.0,69377.0,0.02091975]
[1773233847855,0.02033856,69407.0,69377.0,0.02091975]
[1773233848069,0.07204496,69402.0,69377.0,0.02091975]
[1773233848700,0.02033856,69401.0,69377.0,0.02091975]
[1773233849134,0.02033856,69399.0,69379.0,0.02091975]
[1773233849766,0.0720461,69401.0,69379.0,0.02091975]
[1773233850169,0.00022001,69397.0,69379.0,0.02091975]
[1773233851151,0.0001836,69403.0,69381.0,0.02091975]
[1773233851358,0.0001836,69403.0,69380.0,0.07206687]
[1773233851359,7.5e-05,69409.0,69380.0,0.07206687]
[1773233851360,7.5e-05,69409.0,69393.0,0.02091975]
[1773233851815,0.07211195,69409.0,69393.0,0.02091975]
[1773233851973,0.09245033,69409.0,69393.0,0.02091975]
[1773233853208,0.09245033,69409.0,69394.0,0.07205233]
[1773233853416,0.02033856,69408.0,69394.0,0.07205233]
[1773233855409,0.02033856,69406.0,69382.0,0.02091975]
[1773233857188,0.02033856,69406.0,69400.0,7.5e-05]
[1773233857393,0.02033856,69406.0,69396.0,7.5e-05]
[1773233857598,0.02033856,69404.0,69396.0,7.5e-05]
[1773233860342,0.07204299,69403.0,69396.0,7.5e-05]
[1773233860622,0.09392601,69403.0,69396.0,7.5e-05]
[1773233861553,0.02188302,69405.0,69396.0,7.5e-05]
[1773233862601,0.02188302,69403.0,69396.0,7.5e-05]
[1773233863694,0.07204195,69405.0,69396.0,7.5e-05]
[1773233864100,0.07211695,69405.0,69396.0,7.5e-05]
[1773233864651,7.5e-05,69405.0,69396.0,7.5e-05]
[1773233866238,0.00022001,69408.0,69397.0,0.02176496]
[1773233866449,0.08370525,69410.0,69396.0,7.5e-05]
[1773233866450,0.07211179,69409.0,69399.0,0.02176496]
[1773233866767,0.09399481,69409.0,69400.0,0.0720461]
[1773233866922,0.02195802,69409.0,69400.0,0.0720461]
[1773233867325,0.02195802,69409.0,69400.0,0.0710461]
[1773233868682,7.5e-05,69409.0,69402.0,0.07204403]
[1773233868836,7.5e-05,69409.0,69401.0,0.09380987]
[1773233869681,7.5e-05,69409.0,69401.0,0.02176496]
[1773233869846,0.02154639,69409.0,69399.0,0.07204697]
[1773233870192,0.02154639,69409.0,69396.0,7.5e-05]
[1773233870520,0.02154639,69409.0,69394.0,0.0002]
[1773233870641,0.0720378,69408.0,69394.0,0.0002]
[1773233870847,0.02147139,69407.0,69394.0,0.0002]
[1773233872167,0.0720378,69408.0,69394.0,0.02235003]
[1773233872343,0.02147139,69407.0,69394.0,0.0002]
[1773233873048,7.5e-05,69400.0,69394.0,0.0002]
[1773233873905,0.02147139,69404.0,69394.0,0.0002]
[1773233875219,0.02147139,69402.0,69394.0,0.0002]
[1773233876225,0.07204299,69403.0,69394.0,0.0002]
[1773233877200,0.0720378,69408.0,69394.0,0.0002]
[1773233877942,0.23745873,69408.0,69394.0,0.0002]
[1773233879118,0.07203988,69406.0,69394.0,0.0002]
[1773233879925,0.0720378,69408.0,69395.0,0.02215003]
[1773233880126,0.07233281,69409.0,69395.0,0.02215003]
[1773233880329,7.5e-05,69405.0,69395.0,0.02215003]
[1773233881313,7.5e-05,69405.0,69396.0,0.07212526]
[1773233881730,0.14429422,69409.0,69397.0,0.02215003]
[1773233882075,0.00029501,69409.0,69397.0,0.02215003]
[1773233883490,0.00029501,69409.0,69399.0,0.02215003]
[1773233883703,0.07210857,69413.0,69400.0,0.02215003]
[1773233883704,7.5e-05,69413.0,69400.0,0.02215003]
[1773233883953,7.5e-05,69418.0,69399.0,0.02215003]
[1773233883954,0.02147139,69416.0,69399.0,0.02215003]
[1773233884120,0.02147139,69416.0,69396.0,0.09427529]
[1773233884320,0.02147139,69416.0,69396.0,0.07212526]
[1773233884786,0.02147139,69416.0,69394.0,0.07225026]
[1773233884787,0.02147139,69409.0,69394.0,0.0002]
[1773233884989,0.02147139,69409.0,69394.0,0.07225202]
[1773233885205,0.02147139,69409.0,69394.0,0.0002]
[1773233885606,0.02147139,69407.0,69395.0,0.0002]
[1773233886311,0.02147139,69407.0,69391.0,7.5e-05]
[1773233886922,0.02247139,69407.0,69391.0,7.5e-05]
[1773233887327,0.02147139,69407.0,69391.0,7.5e-05]
[1773233888279,0.07203988,69406.0,69391.0,7.5e-05]
[1773233888458,7.5e-05,69400.0,69391.0,7.5e-05]
[1773233889471,0.02147139,69401.0,69391.0,7.5e-05]
[1773233889824,0.02139639,69401.0,69400.0,7.5e-05]
[1773233890543,0.09344146,69401.0,69400.0,7.5e-05]
[1773233890730,0.07204507,69401.0,69391.0,7.5e-05]
[1773233890934,0.07204507,69401.0,69375.0,0.00023]
[1773233890935,0.02907976,69400.0,69381.0,0.07226567]
[1773233891138,0.02147139,69399.0,69381.0,0.07226567]